[Event "Titled Tuesday Blitz June 13 Early 2023"]
[White "Vignesh N R"]
[Black "Becerra, Juan David"]
[WhiteFideId "25012215"]
[BlackFideId "4404998"]
[WhiteElo "2415"]
[BlackElo "2304"]
[Result "1-0"]
[Round "6"]
[TimeControl "180+2"]
[Date "2023.06.13"]
[WhiteClock "0:00:28"]
[BlackClock "0:00:00"]
[Board "53"]

1. Nf3 {[%clk 0:03:00]}  d5 {[%clk 0:02:59]} 2. g3 {[%clk 0:03:01]}  Bg4 {[%clk 0:02:58]} 3. Bg2 {[%clk 0:03:02]}  Nd7 {[%clk 0:02:58]} 4. h3 {[%clk 0:02:59]}  Bxf3 {[%clk 0:02:57]} 5. Bxf3 {[%clk 0:03:00]}  c6 {[%clk 0:02:54]} 6. O-O {[%clk 0:02:59]}  e5 {[%clk 0:02:51]} 7. d3 {[%clk 0:03:00]}  Ngf6 {[%clk 0:02:51]} 8. e4 {[%clk 0:02:59]}  dxe4 {[%clk 0:02:49]} 9. dxe4 {[%clk 0:02:59]}  Bc5 {[%clk 0:02:49]} 10. a4 {[%clk 0:02:55]}  a5 {[%clk 0:02:44]} 11. Qe2 {[%clk 0:02:51]}  O-O {[%clk 0:02:42]} 12. Nd2 {[%clk 0:02:50]}  Qe7 {[%clk 0:02:32]} 13. Nc4 {[%clk 0:02:48]}  Rfd8 {[%clk 0:02:24]} 14. Bd2 {[%clk 0:02:45]}  Bb4 {[%clk 0:02:11]} 15. c3 {[%clk 0:02:41]}  Bc5 {[%clk 0:02:10]} 16. Kg2 {[%clk 0:02:32]}  Nb6 {[%clk 0:02:08]} 17. Nxb6 {[%clk 0:02:19]}  Bxb6 {[%clk 0:02:08]} 18. Rfd1 {[%clk 0:02:19]}  Rd7 {[%clk 0:02:01]} 19. Qc4 {[%clk 0:02:13]}  Qc5 {[%clk 0:01:54]} 20. Qxc5 {[%clk 0:02:10]}  Bxc5 {[%clk 0:01:55]} 21. Be1 {[%clk 0:01:52]}  Rad8 {[%clk 0:01:54]} 22. Rxd7 {[%clk 0:01:51]}  Rxd7 {[%clk 0:01:55]} 23. h4 {[%clk 0:01:45]}  h5 {[%clk 0:01:49]} 24. Kf1 {[%clk 0:01:36]}  Kf8 {[%clk 0:01:45]} 25. Ke2 {[%clk 0:01:36]}  Ke7 {[%clk 0:01:43]} 26. Bg2 {[%clk 0:01:34]}  Bb6 {[%clk 0:01:28]} 27. Rc1 {[%clk 0:01:23]}  Rd6 {[%clk 0:01:22]} 28. Rc2 {[%clk 0:01:23]}  Ng4 {[%clk 0:01:17]} 29. Bf3 {[%clk 0:01:19]}  g6 {[%clk 0:01:13]} 30. b4 {[%clk 0:01:11]}  axb4 {[%clk 0:00:45]} 31. cxb4 {[%clk 0:01:12]}  f5 {[%clk 0:00:45]} 32. b5 {[%clk 0:01:02]}  Kd7 {[%clk 0:00:34]} 33. a5 {[%clk 0:00:57]}  Bc7 {[%clk 0:00:19]} 34. a6 {[%clk 0:00:35]}  bxa6 {[%clk 0:00:15]} 35. bxa6 {[%clk 0:00:33]}  Bb6 {[%clk 0:00:10]} 36. Ra2 {[%clk 0:00:32]}  Ba7 {[%clk 0:00:09]} 37. Rb2 {[%clk 0:00:33]}  Ke6 {[%clk 0:00:08]} 38. Rb7 {[%clk 0:00:31]}  Rd7 {[%clk 0:00:08]} 39. exf5+ {[%clk 0:00:30]}  gxf5 {[%clk 0:00:07]} 40. Bxc6 {[%clk 0:00:29]}  Rxb7 {[%clk 0:00:06]} 41. Bxb7 {[%clk 0:00:29]}  e4 {[%clk 0:00:06]} 42. f3 {[%clk 0:00:27]}  exf3+ {[%clk 0:00:05]} 43. Bxf3 {[%clk 0:00:28]}  Kf6 {[%clk 0:00:04]} 44. Bxg4 {[%clk 0:00:27]}  hxg4 {[%clk 0:00:00]} 45. Bf2 {[%clk 0:00:28]} 1-0


[Site "https://www.chess.com"]

[Event "Titled Tuesday Blitz June 13 Early 2023"]
[White "Portela Peleteiro, Alberto"]
[Black "Stribuk, Artiom"]
[WhiteFideId "22276106"]
[BlackFideId "13515659"]
[WhiteElo "2353"]
[BlackElo "2303"]
[Result "0-1"]
[Round "6"]
[TimeControl "180+2"]
[Date "2023.06.13"]
[WhiteClock "0:00:30"]
[BlackClock "0:00:05"]
[Board "55"]

1. e4 {[%clk 0:03:00]}  c5 {[%clk 0:02:58]} 2. Ne2 {[%clk 0:03:01]}  d6 {[%clk 0:02:56]} 3. g3 {[%clk 0:03:01]}  Nc6 {[%clk 0:02:53]} 4. Bg2 {[%clk 0:03:01]}  g6 {[%clk 0:02:48]} 5. d4 {[%clk 0:03:01]}  cxd4 {[%clk 0:02:48]} 6. Nxd4 {[%clk 0:03:01]}  Bg7 {[%clk 0:02:48]} 7. Ne2 {[%clk 0:03:02]}  h5 {[%clk 0:02:35]} 8. h3 {[%clk 0:03:01]}  Nf6 {[%clk 0:02:08]} 9. Nbc3 {[%clk 0:03:01]}  O-O {[%clk 0:02:07]} 10. O-O {[%clk 0:03:01]}  Rb8 {[%clk 0:02:07]} 11. a4 {[%clk 0:03:00]}  a6 {[%clk 0:02:07]} 12. Nd5 {[%clk 0:03:01]}  b5 {[%clk 0:02:05]} 13. axb5 {[%clk 0:03:00]}  axb5 {[%clk 0:02:06]} 14. Bg5 {[%clk 0:02:59]}  Ne5 {[%clk 0:01:46]} 15. Nd4 {[%clk 0:02:47]}  Bd7 {[%clk 0:01:36]} 16. Ra7 {[%clk 0:02:41]}  Re8 {[%clk 0:01:34]} 17. b3 {[%clk 0:02:19]}  Nxd5 {[%clk 0:01:28]} 18. exd5 {[%clk 0:02:17]}  Qb6 {[%clk 0:01:29]} 19. Ra2 {[%clk 0:02:07]}  Qxd4 {[%clk 0:01:04]} 20. Qxd4 {[%clk 0:02:08]}  Nf3+ {[%clk 0:01:05]} 21. Bxf3 {[%clk 0:02:08]}  Bxd4 {[%clk 0:01:06]} 22. Kg2 {[%clk 0:02:09]}  f6 {[%clk 0:01:06]} 23. Be3 {[%clk 0:02:03]}  Bxe3 {[%clk 0:01:01]} 24. fxe3 {[%clk 0:02:03]}  Rec8 {[%clk 0:01:01]} 25. Be4 {[%clk 0:02:01]}  Kf7 {[%clk 0:00:57]} 26. Ra7 {[%clk 0:01:57]}  Be8 {[%clk 0:00:56]} 27. Rfa1 {[%clk 0:01:54]}  f5 {[%clk 0:00:53]} 28. Bd3 {[%clk 0:01:54]}  Kf6 {[%clk 0:00:50]} 29. h4 {[%clk 0:01:42]}  Rc5 {[%clk 0:00:50]} 30. e4 {[%clk 0:01:39]}  Rbc8 {[%clk 0:00:37]} 31. exf5 {[%clk 0:01:37]}  gxf5 {[%clk 0:00:34]} 32. Re1 {[%clk 0:01:36]}  R8c7 {[%clk 0:00:33]} 33. Re6+ {[%clk 0:01:30]}  Kf7 {[%clk 0:00:26]} 34. Rxc7 {[%clk 0:01:30]}  Rxc7 {[%clk 0:00:26]} 35. Kf3 {[%clk 0:01:09]}  Kg7 {[%clk 0:00:20]} 36. Kf4 {[%clk 0:01:08]}  Bf7 {[%clk 0:00:20]} 37. Re1 {[%clk 0:01:01]}  Kf6 {[%clk 0:00:20]} 38. c4 {[%clk 0:00:58]}  bxc4 {[%clk 0:00:20]} 39. Bxc4 {[%clk 0:00:58]}  Rc5 {[%clk 0:00:18]} 40. Rd1 {[%clk 0:00:56]}  Ra5 {[%clk 0:00:17]} 41. Rd2 {[%clk 0:00:56]}  Ra1 {[%clk 0:00:17]} 42. Bd3 {[%clk 0:00:53]}  Rc1 {[%clk 0:00:15]} 43. Bxf5 {[%clk 0:00:52]}  Rc3 {[%clk 0:00:12]} 44. Rd3 {[%clk 0:00:45]}  Rc5 {[%clk 0:00:09]} 45. Be4 {[%clk 0:00:45]}  Rb5 {[%clk 0:00:09]} 46. Rf3 {[%clk 0:00:45]}  Rb4 {[%clk 0:00:08]} 47. Ke3+ {[%clk 0:00:45]}  Kg7 {[%clk 0:00:08]} 48. Rf5 {[%clk 0:00:42]}  Rxb3+ {[%clk 0:00:07]} 49. Kf4 {[%clk 0:00:42]}  Rb2 {[%clk 0:00:05]} 50. g4 {[%clk 0:00:39]}  Rf2+ {[%clk 0:00:03]} 51. Kg5 {[%clk 0:00:38]}  Rxf5+ {[%clk 0:00:02]} 52. gxf5 {[%clk 0:00:36]}  Be8 {[%clk 0:00:03]} 53. Bf3 {[%clk 0:00:36]}  Bf7 {[%clk 0:00:03]} 54. Bg2 {[%clk 0:00:36]}  Be8 {[%clk 0:00:02]} 55. Bh1 {[%clk 0:00:36]}  Bf7 {[%clk 0:00:02]} 56. Bf3 {[%clk 0:00:37]}  Kf8 {[%clk 0:00:02]} 57. f6 {[%clk 0:00:37]}  Be8 {[%clk 0:00:01]} 58. Kf5 {[%clk 0:00:35]}  Bf7 {[%clk 0:00:01]} 59. Bg2 {[%clk 0:00:33]}  Be8 {[%clk 0:00:01]} 60. Ke6 {[%clk 0:00:32]}  Bf7+ {[%clk 0:00:02]} 61. Kd7 {[%clk 0:00:33]}  exf6 {[%clk 0:00:02]} 62. Kxd6 {[%clk 0:00:33]}  Ke8 {[%clk 0:00:03]} 63. Bf3 {[%clk 0:00:32]}  Kd8 {[%clk 0:00:03]} 64. Be4 {[%clk 0:00:32]}  Bg8 {[%clk 0:00:03]} 65. Bf5 {[%clk 0:00:33]}  Bf7 {[%clk 0:00:03]} 66. Be6 {[%clk 0:00:33]}  Bg6 {[%clk 0:00:03]} 67. Bh3 {[%clk 0:00:33]}  Bf7 {[%clk 0:00:04]} 68. Be6 {[%clk 0:00:33]}  Be8 {[%clk 0:00:04]} 69. Bf5 {[%clk 0:00:32]}  Bf7 {[%clk 0:00:04]} 70. Be4 {[%clk 0:00:33]}  Be8 {[%clk 0:00:03]} 71. Bg6 {[%clk 0:00:33]}  Bxg6 {[%clk 0:00:04]} 72. Ke6 {[%clk 0:00:34]}  Be4 {[%clk 0:00:03]} 73. d6 {[%clk 0:00:32]}  Bf3 {[%clk 0:00:04]} 74. Kxf6 {[%clk 0:00:32]}  Bg4 {[%clk 0:00:04]} 75. Ke5 {[%clk 0:00:30]}  Kd7 {[%clk 0:00:05]} 0-1


[Site "https://www.chess.com"]

[Event "Titled Tuesday Blitz June 13 Early 2023"]
[White "Deng, Henry"]
[Black "Hayrapetyan, Hovik"]
[WhiteFideId "30965454"]
[BlackFideId "13302639"]
[WhiteElo "2569"]
[BlackElo "2348"]
[Result "1-0"]
[Round "6"]
[TimeControl "180+2"]
[Date "2023.06.13"]
[WhiteClock "0:00:13"]
[BlackClock "0:00:00"]
[Board "57"]

1. e4 {[%clk 0:01:53]}  c5 {[%clk 0:02:58]} 2. Nc3 {[%clk 0:01:51]}  d6 {[%clk 0:02:58]} 3. Bb5+ {[%clk 0:01:50]}  Nd7 {[%clk 0:02:57]} 4. Be2 {[%clk 0:01:48]}  g6 {[%clk 0:02:52]} 5. f4 {[%clk 0:01:48]}  Bg7 {[%clk 0:02:52]} 6. Nf3 {[%clk 0:01:48]}  e6 {[%clk 0:02:40]} 7. O-O {[%clk 0:01:47]}  Ne7 {[%clk 0:02:37]} 8. d3 {[%clk 0:01:45]}  b6 {[%clk 0:02:24]} 9. Qe1 {[%clk 0:01:39]}  Bb7 {[%clk 0:02:18]} 10. Be3 {[%clk 0:01:37]}  O-O {[%clk 0:02:04]} 11. d4 {[%clk 0:01:35]}  cxd4 {[%clk 0:02:01]} 12. Bxd4 {[%clk 0:01:24]}  e5 {[%clk 0:02:00]} 13. fxe5 {[%clk 0:01:18]}  dxe5 {[%clk 0:01:41]} 14. Be3 {[%clk 0:01:16]}  Rc8 {[%clk 0:01:39]} 15. Rd1 {[%clk 0:01:05]}  a6 {[%clk 0:01:39]} 16. Qd2 {[%clk 0:01:02]}  Nc5 {[%clk 0:01:36]} 17. Qxd8 {[%clk 0:00:53]}  Rfxd8 {[%clk 0:01:37]} 18. Rxd8+ {[%clk 0:00:47]}  Rxd8 {[%clk 0:01:36]} 19. Bxc5 {[%clk 0:00:47]}  bxc5 {[%clk 0:01:37]} 20. Re1 {[%clk 0:00:47]}  f6 {[%clk 0:01:22]} 21. Bc4+ {[%clk 0:00:46]}  Kf8 {[%clk 0:01:22]} 22. Kf2 {[%clk 0:00:44]}  h5 {[%clk 0:01:07]} 23. Na4 {[%clk 0:00:43]}  Rc8 {[%clk 0:00:48]} 24. Rd1 {[%clk 0:00:40]}  Bxe4 {[%clk 0:00:41]} 25. Nb6 {[%clk 0:00:30]}  Ke8 {[%clk 0:00:15]} 26. Nxc8 {[%clk 0:00:25]}  Nxc8 {[%clk 0:00:16]} 27. Bxa6 {[%clk 0:00:25]}  Na7 {[%clk 0:00:09]} 28. Bd3 {[%clk 0:00:23]}  Bxd3 {[%clk 0:00:04]} 29. cxd3 {[%clk 0:00:20]}  Kd7 {[%clk 0:00:05]} 30. Nd2 {[%clk 0:00:18]}  Nc6 {[%clk 0:00:01]} 31. Rc1 {[%clk 0:00:18]}  Kd6 {[%clk 0:00:01]} 32. Ne4+ {[%clk 0:00:18]}  Ke6 {[%clk 0:00:01]} 33. Nxc5+ {[%clk 0:00:18]}  Kd5 {[%clk 0:00:01]} 34. Ne4 {[%clk 0:00:17]}  Nb4 {[%clk 0:00:02]} 35. Ke2 {[%clk 0:00:16]}  Nxa2 {[%clk 0:00:03]} 36. Ra1 {[%clk 0:00:16]}  Nb4 {[%clk 0:00:03]} 37. Ra5+ {[%clk 0:00:17]}  Ke6 {[%clk 0:00:02]} 38. Rb5 {[%clk 0:00:16]}  Nd5 {[%clk 0:00:02]} 39. Nc5+ {[%clk 0:00:16]}  Kd6 {[%clk 0:00:02]} 40. Ne4+ {[%clk 0:00:16]}  Ke6 {[%clk 0:00:03]} 41. Nc3 {[%clk 0:00:16]}  Nf4+ {[%clk 0:00:02]} 42. Kd2 {[%clk 0:00:17]}  Bh6 {[%clk 0:00:02]} 43. g3 {[%clk 0:00:16]}  Ng2+ {[%clk 0:00:01]} 44. Kc2 {[%clk 0:00:16]}  Ne1+ {[%clk 0:00:01]} 45. Kb3 {[%clk 0:00:16]}  Nxd3 {[%clk 0:00:02]} 46. Rb6+ {[%clk 0:00:16]}  Kf5 {[%clk 0:00:02]} 47. Nd5 {[%clk 0:00:15]}  Nc5+ {[%clk 0:00:02]} 48. Kc4 {[%clk 0:00:16]}  Ne4 {[%clk 0:00:03]} 49. Ne7+ {[%clk 0:00:14]}  Kg4 {[%clk 0:00:03]} 50. Kd5 {[%clk 0:00:14]}  Nd2 {[%clk 0:00:03]} 51. Rxf6 {[%clk 0:00:14]}  e4 {[%clk 0:00:03]} 52. Rxg6+ {[%clk 0:00:13]}  Bg5 {[%clk 0:00:01]} 53. h4 {[%clk 0:00:13]}  e3 {[%clk 0:00:02]} 54. Rxg5+ {[%clk 0:00:14]}  Kf3 {[%clk 0:00:02]} 55. Nf5 {[%clk 0:00:13]}  Nf1 {[%clk 0:00:01]} 56. Nxe3 {[%clk 0:00:12]}  Nxe3+ {[%clk 0:00:02]} 57. Ke6 {[%clk 0:00:12]}  Nc4 {[%clk 0:00:02]} 58. Rxh5 {[%clk 0:00:12]}  Nxb2 {[%clk 0:00:03]} 59. Rg5 {[%clk 0:00:12]}  Nd3 {[%clk 0:00:04]} 60. h5 {[%clk 0:00:13]}  Nf2 {[%clk 0:00:04]} 61. h6 {[%clk 0:00:13]}  Ne4 {[%clk 0:00:00]} 62. Rg6 {[%clk 0:00:13]} 1-0


[Site "https://www.chess.com"]

[Event "Titled Tuesday Blitz June 13 Early 2023"]
[White "Mahdavi, Reza"]
[Black "Shukhman, Anna"]
[WhiteFideId "12595926"]
[BlackFideId "54180058"]
[WhiteElo "2395"]
[BlackElo "2235"]
[Result "1-0"]
[Round "6"]
[TimeControl "180+2"]
[Date "2023.06.13"]
[WhiteClock "0:00:19"]
[BlackClock "0:00:15"]
[Board "58"]

1. e4 {[%clk 0:03:00]}  Nf6 {[%clk 0:03:00]} 2. e5 {[%clk 0:03:00]}  Nd5 {[%clk 0:03:01]} 3. d4 {[%clk 0:03:01]}  d6 {[%clk 0:03:00]} 4. c4 {[%clk 0:03:01]}  Nb6 {[%clk 0:03:00]} 5. exd6 {[%clk 0:03:02]}  cxd6 {[%clk 0:03:00]} 6. Nc3 {[%clk 0:03:03]}  g6 {[%clk 0:03:00]} 7. Be3 {[%clk 0:03:04]}  Bg7 {[%clk 0:03:01]} 8. Rc1 {[%clk 0:03:04]}  O-O {[%clk 0:03:01]} 9. b3 {[%clk 0:03:05]}  d5 {[%clk 0:02:59]} 10. c5 {[%clk 0:03:05]}  Nc6 {[%clk 0:02:59]} 11. cxb6 {[%clk 0:03:04]}  e5 {[%clk 0:02:59]} 12. Nge2 {[%clk 0:02:36]}  exd4 {[%clk 0:02:57]} 13. Nxd4 {[%clk 0:02:37]}  Bxd4 {[%clk 0:02:56]} 14. Bxd4 {[%clk 0:02:38]}  Qh4 {[%clk 0:02:56]} 15. Bc5 {[%clk 0:02:29]}  Re8+ {[%clk 0:02:55]} 16. Be2 {[%clk 0:02:29]}  axb6 {[%clk 0:02:24]} 17. Bxb6 {[%clk 0:02:30]}  d4 {[%clk 0:02:22]} 18. O-O {[%clk 0:02:27]}  dxc3 {[%clk 0:02:21]} 19. Rxc3 {[%clk 0:02:28]}  Rxa2 {[%clk 0:02:18]} 20. Bc4 {[%clk 0:02:25]}  Be6 {[%clk 0:02:15]} 21. Re3 {[%clk 0:02:21]}  Qf6 {[%clk 0:01:59]} 22. Qd6 {[%clk 0:02:14]}  Qe7 {[%clk 0:01:31]} 23. Qf4 {[%clk 0:02:08]}  Qd7 {[%clk 0:01:26]} 24. Rfe1 {[%clk 0:01:40]}  Re7 {[%clk 0:01:07]} 25. Bc5 {[%clk 0:01:17]}  Re8 {[%clk 0:00:50]} 26. h3 {[%clk 0:01:16]}  Raa8 {[%clk 0:00:41]} 27. Rd3 {[%clk 0:00:56]}  Qc8 {[%clk 0:00:40]} 28. Rde3 {[%clk 0:00:46]}  Qd7 {[%clk 0:00:39]} 29. Qd6 {[%clk 0:00:36]}  Qxd6 {[%clk 0:00:38]} 30. Bxd6 {[%clk 0:00:37]}  Nd4 {[%clk 0:00:35]} 31. Re4 {[%clk 0:00:29]}  Nf5 {[%clk 0:00:29]} 32. Bb4 {[%clk 0:00:25]}  Bd7 {[%clk 0:00:27]} 33. g4 {[%clk 0:00:25]}  Nh4 {[%clk 0:00:25]} 34. Re7 {[%clk 0:00:18]}  Nf3+ {[%clk 0:00:23]} 35. Kf1 {[%clk 0:00:19]}  Nxe1 {[%clk 0:00:15]} 36. Bxf7+ {[%clk 0:00:19]}  Kh8 {[%clk 0:00:15]} 37. Bc3# {[%clk 0:00:19]} 1-0


[Site "https://www.chess.com"]

[Event "Titled Tuesday Blitz June 13 Early 2023"]
[White "Klukin, Kirill"]
[Black "Budrewicz, Krzysztof"]
[WhiteFideId "24199273"]
[BlackFideId "1127950"]
[WhiteElo "2344"]
[BlackElo "2230"]
[Result "0-1"]
[Round "6"]
[TimeControl "180+2"]
[Date "2023.06.13"]
[WhiteClock "0:00:00"]
[BlackClock "0:00:27"]
[Board "59"]

1. e4 {[%clk 0:02:53]}  g6 {[%clk 0:02:59]} 2. f4 {[%clk 0:02:51]}  d5 {[%clk 0:02:58]} 3. e5 {[%clk 0:02:49]}  c5 {[%clk 0:02:58]} 4. Nf3 {[%clk 0:02:49]}  Nc6 {[%clk 0:02:57]} 5. g3 {[%clk 0:02:50]}  Nh6 {[%clk 0:02:56]} 6. Bg2 {[%clk 0:02:50]}  Bg7 {[%clk 0:02:56]} 7. O-O {[%clk 0:02:51]}  O-O {[%clk 0:02:57]} 8. Nc3 {[%clk 0:02:50]}  Bg4 {[%clk 0:02:55]} 9. h3 {[%clk 0:02:50]}  Bxf3 {[%clk 0:02:56]} 10. Qxf3 {[%clk 0:02:49]}  e6 {[%clk 0:02:56]} 11. Ne2 {[%clk 0:02:49]}  Nf5 {[%clk 0:02:54]} 12. c3 {[%clk 0:02:49]}  h5 {[%clk 0:02:52]} 13. d3 {[%clk 0:02:45]}  b5 {[%clk 0:02:50]} 14. Qf2 {[%clk 0:02:43]}  Rc8 {[%clk 0:02:40]} 15. g4 {[%clk 0:02:40]}  hxg4 {[%clk 0:02:32]} 16. hxg4 {[%clk 0:02:41]}  Nh6 {[%clk 0:02:32]} 17. Bf3 {[%clk 0:02:37]}  b4 {[%clk 0:02:27]} 18. Be3 {[%clk 0:02:34]}  bxc3 {[%clk 0:02:22]} 19. bxc3 {[%clk 0:02:35]}  c4 {[%clk 0:02:20]} 20. dxc4 {[%clk 0:02:32]}  dxc4 {[%clk 0:02:19]} 21. Rad1 {[%clk 0:02:32]}  Qa5 {[%clk 0:02:16]} 22. Qh4 {[%clk 0:02:22]}  Qxa2 {[%clk 0:02:08]} 23. Rd2 {[%clk 0:02:15]}  Qa5 {[%clk 0:02:01]} 24. f5 {[%clk 0:01:58]}  Nxg4 {[%clk 0:02:01]} 25. Bxg4 {[%clk 0:01:30]}  exf5 {[%clk 0:02:01]} 26. Rxf5 {[%clk 0:00:39]}  Nxe5 {[%clk 0:01:49]} 27. Rxe5 {[%clk 0:00:33]}  Qxe5 {[%clk 0:01:44]} 28. Bf4 {[%clk 0:00:29]}  Qc5+ {[%clk 0:01:41]} 29. Nd4 {[%clk 0:00:27]}  Rcd8 {[%clk 0:01:33]} 30. Be3 {[%clk 0:00:27]}  Qa3 {[%clk 0:01:25]} 31. Rc2 {[%clk 0:00:19]}  Rde8 {[%clk 0:01:20]} 32. Qf2 {[%clk 0:00:17]}  a5 {[%clk 0:01:16]} 33. Bd7 {[%clk 0:00:14]}  Rd8 {[%clk 0:01:13]} 34. Bb5 {[%clk 0:00:13]}  Qc5 {[%clk 0:01:09]} 35. Ba4 {[%clk 0:00:11]}  Qe5 {[%clk 0:01:07]} 36. Rd2 {[%clk 0:00:07]}  Qe4 {[%clk 0:01:04]} 37. Bc6 {[%clk 0:00:06]}  Qg4+ {[%clk 0:01:04]} 38. Qg2 {[%clk 0:00:06]}  Qxg2+ {[%clk 0:01:01]} 39. Kxg2 {[%clk 0:00:07]}  Rd6 {[%clk 0:00:58]} 40. Bb5 {[%clk 0:00:07]}  Rc8 {[%clk 0:00:53]} 41. Ra2 {[%clk 0:00:08]}  Rd5 {[%clk 0:00:41]} 42. Ba4 {[%clk 0:00:03]}  f5 {[%clk 0:00:32]} 43. Kf3 {[%clk 0:00:04]}  Be5 {[%clk 0:00:31]} 44. Ne2 {[%clk 0:00:03]}  Rd3 {[%clk 0:00:31]} 45. Kf2 {[%clk 0:00:04]}  f4 {[%clk 0:00:30]} 46. Bxf4 {[%clk 0:00:02]}  Bxf4 {[%clk 0:00:26]} 47. Nxf4 {[%clk 0:00:00]}  Rf8 {[%clk 0:00:27]} 0-1


[Site "https://www.chess.com"]

[Event "Titled Tuesday Blitz June 13 Early 2023"]
[White "Skawinski, Arkadiusz"]
[Black "Aradhya, Garg"]
[WhiteFideId "1126415"]
[BlackFideId "25006746"]
[WhiteElo "2218"]
[BlackElo "2263"]
[Result "1-0"]
[Round "6"]
[TimeControl "180+2"]
[Date "2023.06.13"]
[WhiteClock "0:00:31"]
[BlackClock "0:00:05"]
[Board "61"]

1. e4 {[%clk 0:03:00]}  e5 {[%clk 0:02:59]} 2. Nf3 {[%clk 0:03:00]}  Nc6 {[%clk 0:03:00]} 3. Bb5 {[%clk 0:03:00]}  a6 {[%clk 0:03:00]} 4. Ba4 {[%clk 0:03:00]}  Bc5 {[%clk 0:03:01]} 5. O-O {[%clk 0:02:59]}  d6 {[%clk 0:03:01]} 6. c3 {[%clk 0:02:58]}  Bd7 {[%clk 0:03:01]} 7. d4 {[%clk 0:02:58]}  Ba7 {[%clk 0:03:02]} 8. h3 {[%clk 0:02:57]}  Nf6 {[%clk 0:03:02]} 9. Re1 {[%clk 0:02:58]}  O-O {[%clk 0:03:00]} 10. Bg5 {[%clk 0:02:47]}  h6 {[%clk 0:03:00]} 11. Bh4 {[%clk 0:02:47]}  Re8 {[%clk 0:02:50]} 12. Bb3 {[%clk 0:02:35]}  g5 {[%clk 0:02:29]} 13. Nxg5 {[%clk 0:02:32]}  hxg5 {[%clk 0:02:30]} 14. Bxg5 {[%clk 0:02:33]}  Kg7 {[%clk 0:02:30]} 15. Re3 {[%clk 0:02:18]}  Ne7 {[%clk 0:02:03]} 16. Rf3 {[%clk 0:02:13]}  Neg8 {[%clk 0:01:58]} 17. Rg3 {[%clk 0:02:10]}  Kf8 {[%clk 0:01:55]} 18. h4 {[%clk 0:01:53]}  exd4 {[%clk 0:01:52]} 19. h5 {[%clk 0:01:53]}  Qc8 {[%clk 0:01:34]} 20. Qd2 {[%clk 0:01:41]}  Nxh5 {[%clk 0:01:29]} 21. Bh6+ {[%clk 0:01:41]}  Ke7 {[%clk 0:01:30]} 22. Rg5 {[%clk 0:01:36]}  Ngf6 {[%clk 0:01:26]} 23. e5 {[%clk 0:01:34]}  dxe5 {[%clk 0:01:26]} 24. Rxe5+ {[%clk 0:01:26]}  Kd8 {[%clk 0:01:25]} 25. Rxh5 {[%clk 0:01:19]}  Nxh5 {[%clk 0:01:22]} 26. Qg5+ {[%clk 0:01:17]}  f6 {[%clk 0:01:14]} 27. Qxh5 {[%clk 0:01:17]}  Re1+ {[%clk 0:01:15]} 28. Kh2 {[%clk 0:01:17]}  dxc3 {[%clk 0:01:15]} 29. Nxc3 {[%clk 0:01:11]}  Rxa1 {[%clk 0:01:14]} 30. Qf7 {[%clk 0:01:11]}  c5 {[%clk 0:01:02]} 31. Nd5 {[%clk 0:01:01]}  Qc6 {[%clk 0:00:39]} 32. Bf4 {[%clk 0:00:37]}  Qe6 {[%clk 0:00:30]} 33. Qf8+ {[%clk 0:00:35]}  Be8 {[%clk 0:00:21]} 34. Nxf6 {[%clk 0:00:33]}  Qe1 {[%clk 0:00:05]} 35. Qd6+ {[%clk 0:00:30]}  Bd7 {[%clk 0:00:05]} 36. Qxd7# {[%clk 0:00:31]} 1-0


[Site "https://www.chess.com"]

[Event "Titled Tuesday Blitz June 13 Early 2023"]
[White "Lehtosaari, Mauri"]
[Black "Starozhilov, Leonid"]
[WhiteFideId "501999"]
[BlackFideId "14106752"]
[WhiteElo "2562"]
[BlackElo "2352"]
[Result "0-1"]
[Round "6"]
[TimeControl "180+2"]
[Date "2023.06.13"]
[WhiteClock "0:00:03"]
[BlackClock "0:00:05"]
[Board "62"]

1. d4 {[%clk 0:02:55]}  Nf6 {[%clk 0:02:58]} 2. Nf3 {[%clk 0:02:53]}  g6 {[%clk 0:02:57]} 3. Bg5 {[%clk 0:02:49]}  Bg7 {[%clk 0:02:57]} 4. Nbd2 {[%clk 0:02:49]}  d6 {[%clk 0:02:54]} 5. c3 {[%clk 0:02:47]}  O-O {[%clk 0:02:53]} 6. e3 {[%clk 0:02:37]}  Nc6 {[%clk 0:02:52]} 7. Bc4 {[%clk 0:02:36]}  e5 {[%clk 0:02:50]} 8. O-O {[%clk 0:02:33]}  Qe7 {[%clk 0:02:50]} 9. dxe5 {[%clk 0:02:32]}  dxe5 {[%clk 0:02:35]} 10. Ne4 {[%clk 0:02:28]}  Bf5 {[%clk 0:02:28]} 11. Nxf6+ {[%clk 0:02:22]}  Bxf6 {[%clk 0:02:28]} 12. Bxf6 {[%clk 0:02:22]}  Qxf6 {[%clk 0:02:29]} 13. Qa4 {[%clk 0:02:06]}  a6 {[%clk 0:01:52]} 14. Bd5 {[%clk 0:01:59]}  Nd8 {[%clk 0:01:37]} 15. Qh4 {[%clk 0:01:37]}  Qxh4 {[%clk 0:01:30]} 16. Nxh4 {[%clk 0:01:37]}  Bd3 {[%clk 0:01:16]} 17. Rfd1 {[%clk 0:01:32]}  e4 {[%clk 0:01:15]} 18. f3 {[%clk 0:01:06]}  Re8 {[%clk 0:01:15]} 19. f4 {[%clk 0:01:00]}  c5 {[%clk 0:01:02]} 20. c4 {[%clk 0:00:55]}  Rb8 {[%clk 0:00:57]} 21. a4 {[%clk 0:00:44]}  Kg7 {[%clk 0:00:46]} 22. g3 {[%clk 0:00:40]}  Nc6 {[%clk 0:00:44]} 23. f5 {[%clk 0:00:22]}  Nb4 {[%clk 0:00:36]} 24. fxg6 {[%clk 0:00:20]}  hxg6 {[%clk 0:00:36]} 25. Ng2 {[%clk 0:00:20]}  f5 {[%clk 0:00:31]} 26. Nf4 {[%clk 0:00:20]}  Nc2 {[%clk 0:00:32]} 27. Ne6+ {[%clk 0:00:17]}  Kf6 {[%clk 0:00:27]} 28. Nxc5 {[%clk 0:00:17]}  Nxe3 {[%clk 0:00:21]} 29. Nd7+ {[%clk 0:00:15]}  Kg5 {[%clk 0:00:21]} 30. Nxb8 {[%clk 0:00:15]}  Nxd1 {[%clk 0:00:18]} 31. Rxd1 {[%clk 0:00:09]}  Rxb8 {[%clk 0:00:18]} 32. b4 {[%clk 0:00:09]}  b6 {[%clk 0:00:17]} 33. Kf2 {[%clk 0:00:08]}  Kf6 {[%clk 0:00:15]} 34. Ke3 {[%clk 0:00:07]}  Ke5 {[%clk 0:00:15]} 35. h4 {[%clk 0:00:04]}  a5 {[%clk 0:00:13]} 36. b5 {[%clk 0:00:02]}  Rc8 {[%clk 0:00:11]} 37. Rh1 {[%clk 0:00:03]}  Bxc4 {[%clk 0:00:10]} 38. Bxc4 {[%clk 0:00:04]}  Rxc4 {[%clk 0:00:10]} 39. h5 {[%clk 0:00:05]}  Rc3+ {[%clk 0:00:10]} 40. Kf2 {[%clk 0:00:05]}  gxh5 {[%clk 0:00:10]} 41. Rxh5 {[%clk 0:00:06]}  Rc2+ {[%clk 0:00:10]} 42. Kf1 {[%clk 0:00:05]}  e3 {[%clk 0:00:09]} 43. g4 {[%clk 0:00:05]}  Rf2+ {[%clk 0:00:08]} 44. Ke1 {[%clk 0:00:05]}  Ke4 {[%clk 0:00:08]} 45. g5 {[%clk 0:00:04]}  f4 {[%clk 0:00:06]} 46. g6 {[%clk 0:00:03]}  Rg2 {[%clk 0:00:05]} 47. Rh6 {[%clk 0:00:03]}  Rg1+ {[%clk 0:00:04]} 48. Ke2 {[%clk 0:00:03]}  f3# {[%clk 0:00:05]} 0-1


[Site "https://www.chess.com"]